Cogmind - Beta 15 @@@ ROGUE MODE // 2025.08.29 @ 11:12:14 Player: beans Result: Destroyed by S-10 Pest with Light Assault Rifle Performance ------------- Evolutions (2) 1000 Regions Visited (3) 600 Robots Destroyed (71) 355 Value Destroyed (1829) 1829 Prototype IDs (1) 20 Alien Tech Used (0) 0 Bonus (0) 0 TOTAL SCORE: 3804 Bonus ------- None Cogmind --------- Core Integrity 0/550 Matter 6/300 Energy 99/100 System Corruption 0% Temperature Cool (0) Movement Core (50) Location -8/Materials Parts ------- > --- POWER (1) -------- (None) > --- PROPULSION (2) --- (None) > --- UTILITY (4) ------ Hacking Suite Hacking Suite > --- WEAPON (4) ------- (None) > --- INVENTORY (5) ---- High-capacity Matter Pod (200) Advanced Targeting Computer Target Analyzer Hacking Suite System Shield Peak State ------------ > --- POWER ------------ Heavy Ion Engine > --- PROPULSION ------- Light Treads Advanced Treads > --- UTILITY ---------- Large Storage Unit Hacking Suite Hacking Suite > --- WEAPON ----------- Light Cannon Assault Cannon Flak Cannon Blade Saw > --- INVENTORY -------- Nuclear Core High-capacity Matter Pod Advanced Targeting Computer Target Analyzer Hacking Suite Hacking Suite Light Cannon Rocket Launcher Mini Grenade Launcher Blade Saw [Rating: 26] Favorites ----------- Power Heavy Ion Engine Engine Heavy Ion Engine Power Core Nuclear Core Propulsion Light Treads Treads Light Treads Utility Large Storage Unit Storage Large Storage Unit Hackware Hacking Suite Protection Hardened Medium Armor Plating Weapon Light Cannon Ballistic Gun Assault Rifle Ballistic Cannon Light Cannon Launcher Rocket Launcher Slashing Weapon Blade Saw Build | -11 -10 -9 -8 ------- Run | Yrd Mat Mat Mat Slots Evolved 4 | . . 2 2 Power . | . . . . Propulsion . | . . . . Utility 2 | . . . 2 Weapon 2 | . . 2 . Parts Attached 26 | 2 5 7 12 Power 2 | . . 2 . Engine 1 | . . 1 . Core 1 | . . 1 . Reactor . | . . . . Propulsion 5 | 2 . . 3 Treads 5 | 2 . . 3 Leg . | . . . . Wheel . | . . . . Hover . | . . . . Flight . | . . . . Utility 7 | . 1 3 3 Device . | . . . . Storage 1 | . . 1 . Processor . | . . . . Hackware 3 | . . . 3 Protection 3 | . 1 2 . Artifact . | . . . . Weapon 12 | . 4 2 6 Energy Gun . | . . . . Energy Cannon . | . . . . Ballistic Gun 1 | . 1 . . Ballistic Cannon 6 | . 2 2 2 Launcher 3 | . 1 . 2 Special Weapon . | . . . . Impact Weapon . | . . . . Slashing Weapon 2 | . . . 2 Piercing Weapon . | . . . . Special Melee Weapon . | . . . . Unidentified Prototypes 1 | . . 1 . Parts Lost 18 | . 1 . 17 Power 1 | . . . 1 Propulsion 4 | . . . 4 Utility 2 | . . . 2 Weapon 11 | . 1 . 10 Highest Loss Streak 12 | . 1 . 12 To Critical Strikes . | . . . . Average Backups 7 | . 2 9 9 Power . | . . . . Propulsion . | . . . . Utility 3 | . 1 4 4 Weapon 3 | . 1 3 3 Tool/Special . | . . . . Unused Backups 5 | . . . 5 Power . | . . . . Propulsion . | . . . . Utility 5 | . . . 5 Weapon . | . . . . Tool/Special . | . . . . Average Slot Usage (%) 85 | . 46 97 88 Engine 4 | . . 4 8 Core 2 | . . 5 . Treads 21 | . 28 22 15 Storage 7 | . . 10 8 Hackware 5 | . . . 17 Protection 8 | . 3 10 6 Ballistic Cannon 32 | . 10 43 26 Launcher 1 | . 1 . 4 Peak Build Rating 26 | 2 5 15 26 Average Rating 13 | 1 3 14 20 On Entrance 5 | . 2 5 15 Naked Turns . | . . . . Heaviest Build 49 | . 9 48 49 Greatest Support 42 | 40 40 40 42 Greatest Overweight (x) 2 | . . 1 2 Average Overweight (x) . | . . . . Largest Inventory Capacity 15 | 5 5 15 15 Average Capacity 12 | 5 5 14 14 Most Carried 12 | 2 5 12 12 Average Carried 7 | . 2 9 9 Final Capacity 15 | 5 5 15 5 Final Carried 12 | . 5 12 5 Class Distribution -------------------- 51% | Tank 22% | Hacker-Tank 19% | Mutant 4% | Hacker-Mutant Dominant Class ---------------- Mutant | -10/Materials Tank | -9/Materials Hacker-Tank | -8/Materials Resources | -11 -10 -9 -8 ----------- Run | Yrd Mat Mat Mat Matter Collected 1946 | 199 287 845 615 Remotely . | . . . . Salvage Created 1800 | . 328 653 819 Parts 99 | . 24 35 40 Haulers Intercepted 5 | . . 4 1 Recyclers Shooed 3 | . 1 . 2 Parts Field Recycled . | . . . . Retrieved Matter . | . . . . Parts Self-Destructed . | . . . . Prevented . | . . . . Kills | -11 -10 -9 -8 ------- Run | Yrd Mat Mat Mat Combat Hostiles Destroyed 43 | . 11 15 17 Guns 1 | . 1 . . Cannons 30 | . 7 15 8 AOE 12 | . 3 . 9 Classes Destroyed 10 | . 5 4 1 Worker 9 | . . 4 5 Builder 6 | . 1 1 4 Hauler 5 | . . 4 1 Recycler 4 | . 1 . 3 Operator 3 | . 1 2 . Watcher 1 | . . 1 . Swarmer 9 | . 3 4 2 Grunt 26 | . 8 7 11 Sentry 6 | . . 4 2 Specialist 2 | . . . 2 Best Kill Streak 15 | . 6 5 15 Combat Bots Only 5 | . 5 3 4 Max Kills in Single Turn 3 | . 2 1 3 Gunslinging . | . . . . Exploded 3 | . 1 . 3 Melee . | . . . . Uniques/NPCs Destroyed . | . . . . Combat | -11 -10 -9 -8 -------- Run | Yrd Mat Mat Mat Hostile Shots Fired 262 | . 43 59 160 Missed 76 | . 7 17 52 Hits 186 | . 36 42 108 Projectile 186 | . 36 42 108 Critical Strikes 8 | . . 2 6 Damage Taken 3007 | . 428 527 2052 Core 731 | . 98 79 554 Absorbed by Shields . | . . . . Core Remaining (%) 80 | 100 60 80 . Volleys Fired 130 | . 29 52 49 Largest 4 | . 2 4 4 Hottest 120 | . 60 120 120 Shots Fired 366 | . 44 200 122 Gun 6 | . 6 . . Cannon 334 | . 30 200 104 Launcher 26 | . 8 . 18 Special . | . . . . Kinetic 340 | . 36 200 104 Thermal . | . . . . Explosive 26 | . 8 . 18 Electromagnetic . | . . . . Robot Hit Streak 12 | . 4 12 11 Robot Miss Streak 6 | . 2 4 6 Penetration Max . | . . . . Secondary Targets . | . . . . Shots Hit Robots 173 | . 22 85 66 Core Hits 123 | . 20 34 69 Critical Kills . | . . . . Critical Parts Destroyed . | . . . . Critical Strikes 8 | . . 5 3 Blast 8 | . . 5 3 Melee Attacks 7 | . . . 7 Impact . | . . . . Slashing 7 | . . . 7 Piercing . | . . . . Sneak Attacks . | . . . . Combat Hostiles . | . . . . Follow-up Attacks . | . . . . Damage Inflicted 5170 | . 759 1566 2845 Guns 50 | . 50 . . Cannons 2912 | . 296 1566 1050 Explosions 2170 | . 409 . 1761 Melee 34 | . . . 34 Ramming 4 | . 4 . . Kinetic 2962 | . 346 1566 1050 Thermal . | . . . . Explosive 2170 | . 409 . 1761 Electromagnetic . | . . . . Impact . | . . . . Slashing 34 | . . . 34 Piercing . | . . . . Highest Corruption . | . . . . Average Corruption . | . . . . Corruption Purged . | . . . . Corruption Blocked . | . . . . Overload Shots . | . . . . Overflow Damage 44 | . . 24 20 Projectiles 39 | . . 24 15 Explosions 5 | . . . 5 Melee . | . . . . Knockbacks 30 | . 4 12 14 Impact . | . . . . Kinetic 28 | . 4 11 13 Secondary 2 | . . 1 1 Self-Inflicted Damage 51 | . 9 . 42 Shots 3 | . 1 . 2 Rammed 1 | . 1 . . Targets Rammed 1 | . 1 . . Kicked . | . . . . Crushed . | . . . . Highest Temperature 363 | . 5 363 274 Average Temperature 106 | . 3 119 85 Received Heat Transfer 1098 | . 201 177 720 Siege Activations . | . . . . Martial Activations . | . . . . Shielding Activations . | . . . . Robots Disrupted . | . . . . Combat Hostiles . | . . . . Robots Corrupted . | . . . . Combat Hostiles . | . . . . Parts Fried . | . . . . Impact Corruptions . | . . . . Robots Melted . | . . . . Combat Hostiles . | . . . . Parts Melted . | . . . . Heat Transferred . | . . . . Parts Sabotaged . | . . . . Parts Stolen . | . . . . Parts Stripped . | . . . . Power Chain Reactions . | . . . . Alert | -11 -10 -9 -8 ------- Run | Yrd Mat Mat Mat Maximum Alert Level 1 | . . . 1 Low Security (%) 96 | 100 100 100 88 Level 1 3 | . . . 11 Level 2 . | . . . . Level 3 . | . . . . Level 4 . | . . . . Level 5 . | . . . . High Security . | . . . . Max Security . | . . . . Peak Influence 230 | . 173 127 230 Initial 66 | . . 66 44 Average 60 | . 58 57 70 Influence Increases 1533 | . 327 535 671 Destroy 0b10 Robot/C 860 | . 220 300 340 Destroy 0b10 Robot/NC 140 | . 15 60 65 Destroy Leader 212 | . 50 90 72 Successful Hack 2 | . . 2 . Disable Machine 165 | . . 75 90 Destroy Structure 94 | . 42 8 44 Lose Combat Pursuer 60 | . . . 60 Influence Decreases 1319 | . 170 585 564 Entered New Map 154 | . . 91 63 Time Decay 990 | . 160 494 336 Lost Part 175 | . 10 . 165 Squads Dispatched 6 | . 2 . 4 Investigation . | . . . . Extermination . | . . . . Reinforcement 4 | . 2 . 2 Assault . | . . . . Garrison 2 | . . . 2 Intercept . | . . . . Searches Triggered . | . . . . Construction Impeded . | . . . . Haulers Reinforced . | . . . . Active Scanning Responses . | . . . . Cargo Convoy Interrupts . | . . . . Stealth | -11 -10 -9 -8 --------- Run | Yrd Mat Mat Mat Distress Signals 8 | . 1 4 3 Communications Jammed . | . . . . Distress Signals . | . . . . Times Spotted 73 | . 19 21 33 Peak Tracking Total 12 | . 7 4 12 Tactical Retreats 2 | . . . 2 Traps | -11 -10 -9 -8 ------- Run | Yrd Mat Mat Mat Traps Triggered . | . . . . Indirectly . | . . . . Trap Hack Attempts . | . . . . Triggered . | . . . . Disarmed . | . . . . Reprogrammed . | . . . . Reused . | . . . . Traps Extracted . | . . . . Installed . | . . . . Triggered . | . . . . Machines | -11 -10 -9 -8 ---------- Run | Yrd Mat Mat Mat Machines Disabled 11 | . . 5 6 Max in Single Turn 2 | . . 1 2 Garrison Access 1 | . . . 1 Machines Repaired . | . . . . Machines Dismantled . | . . . . Machines Sabotaged . | . . . . Overloaded Fab Kills . | . . . . Hacking | -11 -10 -9 -8 --------- Run | Yrd Mat Mat Mat Machines Accessed 2 | . . 1 1 Terminals . | . . . . Fabricators . | . . . . Repair Stations . | . . . . Recycling Units . | . . . . Scanalyzers 1 | . . 1 . Garrison Access 1 | . . . 1 Total Hacks 13 | . . 9 4 Successful 9 | . . 8 1 Failed 4 | . . 1 3 Catastrophic . | . . . . Database Lockouts . | . . . . Manual . | . . . . Terminals . | . . . . Fabricators . | . . . . Repair Stations . | . . . . Recycling Units . | . . . . Scanalyzers 9 | . . 9 . Garrison Access 4 | . . . 4 Terminal Hacks . | . . . . Fabricator Hacks . | . . . . Repair Station Hacks . | . . . . Recycling Unit Hacks . | . . . . Scanalyzer 8 | . . 8 . Insert Component 4 | . . 4 . Analyze 4 | . . 4 . Garrison Access Hacks 1 | . . . 1 Seal Access 1 | . . . 1 Unauthorized Hacks . | . . . . Terminals . | . . . . Fabricators . | . . . . Repair Stations . | . . . . Recycling Units . | . . . . Scanalyzers . | . . . . Garrison Access . | . . . . Data Cores Recovered 2 | . . 2 . Used . | . . . . Hacking Detections 1 | . . 1 . Full Trace Events . | . . . . Feedback Events . | . . . . Feedback Blocked . | . . . . Robot Schematics Acquired . | . . . . Robots Built . | . . . . Authchips . | . . . . Time . | . . . . Total Robot Build Rating . | . . . . Part Schematics Acquired 3 | . . 3 . Parts Built . | . . . . Authchips . | . . . . Time . | . . . . Total Part Build Rating . | . . . . Parts Repaired . | . . . . Time . | . . . . Parts Recycled . | . . . . Recycled Matter . | . . . . Retrieved Matter . | . . . . Retrieved Components . | . . . . Parts Scanalyzed 3 | . . 3 . Part Schematics Acquired 3 | . . 3 . Parts Damaged . | . . . . Bothacking | -11 -10 -9 -8 ------------ Run | Yrd Mat Mat Mat Used RIF Installer . | . . . . Robots Hacked . | . . . . Non-combat . | . . . . Combat . | . . . . Robot Hacks Applied . | . . . . Relay Couplers Released . | . . . . Fabnet Peak Effective % . | . . . . Robots Rewired . | . . . . Allies Hacked . | . . . . Hacks Repelled . | . . . . Allies | -11 -10 -9 -8 -------- Run | Yrd Mat Mat Mat Total Allies . | . . . . Largest Group . | . . . . Highest-Rated Group . | . . . . Highest-Rated Ally . | . . . . Total Orders . | . . . . Ally Attacks . | . . . . Total Damage . | . . . . Kills . | . . . . Allies Corrupted . | . . . . Allies Melted . | . . . . Intel | -11 -10 -9 -8 ------- Run | Yrd Mat Mat Mat Active Infowar (turns) . | . . . . Robot Analysis Total . | . . . . Derelict Logs Recovered . | . . . . Drone Launches . | . . . . Drone Recoveries . | . . . . Exploration | -11 -10 -9 -8 ------------- Run | Yrd Mat Mat Mat Turns Passed 2790 | 36 498 1433 823 Spaces Moved 1186 | 29 255 538 364 Core 128 | 12 . . 116 Treads 1058 | 17 255 538 248 Legs . | . . . . Wheels . | . . . . Hover . | . . . . Flight . | . . . . Fastest Speed 50 | 50 160 160 50 Average Speed 193 | 114 160 227 173 Slowest Speed 320 | 160 160 240 320 Overloaded Moves . | . . . . Propulsion Burnouts . | . . . . Robots Hopped . | . . . . Potential Cave-ins . | . . . . Cave-ins Triggered . | . . . . Exploration Rate (%) 35 | 4 42 49 46 Regions Visited 3 Branch Regions . Pre-discovered Areas . | . . . . Known Exits Taken . | . . . . Unknown Exits Taken 3 | 1 1 1 . Scrap Searched . | . . . . Spaces Dug 31 | . 21 . 10 Terrain Destroyed 86 | . 40 . 46 Melee . | . . . . Projectile 2 | . . . 2 AOE 84 | . 40 . 44 Terrain Rammed . | . . . . Walls Destroyed . | . . . . Machines Disabled . | . . . . Actions | -11 -10 -9 -8 --------- Run | Yrd Mat Mat Mat Total 1399 | 32 300 619 448 Wait 12 | . 3 6 3 Move 1183 | 28 254 537 364 Hop . | . . . . Pick Up 30 | 2 8 14 6 Fast Attach 1 | . 1 . . Attach 23 | 2 3 6 12 Detach 1 | . . . 1 Swap 5 | . 1 1 3 Drop 6 | . . 3 3 Fire 130 | . 29 52 49 Melee 7 | . . . 7 Ram . | . . . . Kick . | . . . . Crush 1 | . 1 . . Escape Stasis . | . . . . Rewire . | . . . . Trap . | . . . . Miscellaneous . | . . . . Route ------- -11/Scrapyard -10/Materials -9/Materials -8/Materials History --------- Turn | Location | Event 4 | -11/Scrapyard | Discovered new exit (range 15) 37 | -11/Scrapyard | Entered Materials 317 | -10/Materials | Build established: Mutant 499 | -10/Materials | Discovered new exit (range 7) 535 | -10/Materials | Entered another Materials area 535 | -9/Materials | Evolved 2 slots: Weapon x2 850 | -9/Materials | Build established: Tank 1936 | -9/Materials | Discovered new exit (range 12) 1968 | -9/Materials | Entered another Materials area 1968 | -8/Materials | Evolved 2 slots: Utility x2 2171 | -8/Materials | Garrison activated, responded to threat 2284 | -8/Materials | Build established: Hacker-Tank 2656 | -8/Materials | Lost 3 parts (1u2w) 2715 | -8/Materials | Core integrity fell below 50% 2728 | -8/Materials | Core integrity fell below 20% 2764 | -8/Materials | Lost 12 parts (1p2n1u8w) 2791 | -8/Materials | Destroyed by S-10 Pest with Light Assault Rifle Last Messages --------------- Mni. Grenade Launcher destroyed. K-01 Serf collects debris. The unstable cave ceiling collapses. Lgt. Cannon destroyed. K-01 Serf collects debris. Dropped Lrg. Storage Unit. The unstable cave ceiling collapses. U-05 Engineer lays Concrete. K-01 Serf collects debris. U-05 Engineer lays Concrete. Rocket Launcher destroyed. K-01 Serf destroyed. U-05 Engineer builds a Wall. R-06 Scavenger collects Lgt. Ion Engine. The unstable cave ceiling collapses. Dropped Nuclear Core. Acquired System Shield. U-05 Engineer lays Concrete. C-30 ARC bursts open, deploying its payload. S-10 Pest unfolds itself. Map ----- +----------------------------------------------------+ | ????????????????????????????????????######?# ## | | ??????????????????????????????????? ?# ## | | ?????????????????????????????????#= """ # ## | | ?????????????????????????????????# "T" # ## | | ?????????????????????????????????? """ + + | | ?????????????????????????????????? """ # ## | | ?????????????????????????????????? """ ###### | | ????????????????????????????????? ]??????# | | ????????????????????????????+???## ??????# | | ???????????????????????????? ????###########????# | | ???????????????????????????? ????#= % | #????# | | ???????????????????????????? ????? ####### | | ???????????????????????????? ????# """"" # | | ???????????????????????????# ????# """"" + | | ??????????????????????????? %????+ """"" # | | ??????????????????????????? #???# # ### | | ??????????????????????????? #???# # #?? | | ??????????????????????????? #???# ! + #?? | | ???????????????????????????# #???############# #?? | | ???????????????????????????# #???????????????# #?? | | ???????????????????????????# #???????????????# #? | | ???????????????????????????# #???????????????# #? | | ???????????????????????????# ################# # | | ????????????????????######## # | | ????????????????????#/ # ### | | ????????????????????# @ # #?? | | ????????????????????# sss #?? | | ????????????????????# ! ! #####################?? | | ????????????????????# #?????????????????????? | | ????????????????????# ! #?????????????????????? | | ????????????????????########?????????????????????? | | | | | | | | | | | | | | | | | | | | | | | | | | | | | | | | | | | | | | | +----------------------------------------------------+ Best States ------------- Heat Dissipation 31 Energy Generation 14 Energy Capacity 280 Matter Stores 300 Matter Capacity 300 Sight Range 16 Terrain Scan Density 10 Armor Coverage 225 Evasion (%) 50 Recoil Reduction 2 Offensive Hacking 20 Item Schematics ----------------- Rocket Launcher | -9/Materials | Scanalyzed Hcp. Matter Pod | -9/Materials | Scanalyzed Hacking Suite | -9/Materials | Scanalyzed Robot Schematics ------------------ None Fabricated ------------ Nothing Repaired ---------- Nothing Alien Tech Used ----------------- None Achievements -------------- None Challenges ------------ None Game ------ Seed SpacefoldChainCapacitor Manual? 0 Play Time 00:17:07 Cumulative 110.1 hours Start 2025.08.29 @ 10:42:07 End 2025.08.29 @ 11:12:14 Sessions 1 Manual Loads 0 Difficulty Rogue Special Mode None Game No. 407 Rogue 407 Adventurer 0 Explorer 0 Win Type - Total 0 Types 0/0/0/0/0/0/0/0/0/0 Lore% 44 Gallery% 43 Achievement% 31 Wizard Run 0 Options --------- Layout 2 ASCII 0 Keyboard 0 Movement Mouse Keybinds 0 Fullscreen 2 Font 24/Smallcaps Map View 50x44 Zoom Use 0% Tactical HUD 0 Map Filters NONE Filters NONE Steam 1 RUN: 2496d24d-a0e5-4825-997e-83c9f4fb8df7